Cogmind - Beta 11.1 @@@ ROGUE MODE // 2022.06.06 @ 01:44:27 Player: Savant Result: Destroyed by B-86 Titan with Matter Neutralizer Performance ------------- Evolutions (7) 3500 Regions Visited (28) 5600 Robots Destroyed (287) 1435 Value Destroyed (16192) 16192 Prototype IDs (51) 1020 Alien Tech Used (0) 0 Bonus (16364) 16364 TOTAL SCORE: 44111 Bonus ------- High Alert Combat Kills 2151 Follower Combat Kills 8836 Entered Garrisons 1800 Used RIF Installer 4500 Built Enhanced Grunts 300 Friendly Fire -1223 Cogmind --------- Core Integrity 0/1300 Matter 51/300 Energy 99/100 System Corruption 3% Temperature Cool (9) Movement Core (50) Location -3/Research Parts ------- > --- POWER (1) -------- (None) > --- PROPULSION (4) --- (None) > --- UTILITY (14) ----- Advanced Targeting Computer Relay Coupler [NC] (17) Relay Coupler [NC] (33) Relay Coupler [Swarmer] (44) Relay Coupler [Specialist] (22) Relay Coupler [Heavy] (15) > --- WEAPON (2) ------- (None) > --- INVENTORY (5) ---- Point Defense Array Improved System Restoration Module Neutron Cannon Heavy Neutron Cannon Force Lance Peak State ------------ > --- POWER ------------ Quantum Reactor > --- PROPULSION ------- Centrium Heavy Treads Centrium Heavy Treads > --- UTILITY ---------- Experimental Cooling System Huge Storage Unit Experimental Optical Array Advanced Targeting Computer Centrium Medium Armor Plating Centrium Medium Armor Plating Improved Remote Shield Point Defense Array Relay Coupler [NC] Relay Coupler [Swarmer] Relay Coupler [Sentry] Relay Coupler [Specialist] Relay Coupler [Hunter] Relay Coupler [Behemoth] > --- WEAPON ----------- Advanced KE Penetrator Improved Remote Datajack > --- INVENTORY -------- Biometal Heavy Treads Centrium Wheel Advanced Heat Sink Energy Well Advanced Matter Compressor Advanced Terrain Scanner Improved Kinecellerator Relay Coupler [NC] Relay Coupler [NC] Relay Coupler [Swarmer] Relay Coupler [Brawler] Relay Coupler [Heavy] Relay Coupler [Behemoth] Improved Component Analysis Suite Improved System Restoration Module HERF Cannon Neutron Cannon Heavy Neutron Cannon Linear Accelerator Tiamat Missile Launcher Improved Remote Datajack Impact Mace Force Lance [Rating: 149] Favorites ----------- Power Light Neutrino Core Engine Reinforced Deuterium Engine Power Core Light Neutrino Core Reactor Quantum Reactor Propulsion Heavy Treads Treads Heavy Treads Leg Aluminum Leg Wheel Wheel Flight Unit VTOL Module Utility Advanced Targeting Computer Device Transmission Jammer Storage Huge Storage Unit Processor Advanced Targeting Computer Hackware Relay Coupler [Sentry] Protection Layered Medium Armor Plating Weapon Improved Remote Datajack Energy Gun Medium Laser Energy Cannon HERF Cannon Ballistic Gun KE Penetrator Ballistic Cannon Antimatter Cannon Launcher Tiamat Missile Launcher Special Weapon Improved Remote Datajack Impact Weapon Impact Mace Slashing Weapon Chainsword Piercing Weapon Force Lance Special Melee Weapon Improved Datajack Build | -11 -10 -10 -9 -9 -9 -8 -8 -7 -7 -7 -7 -6 -6 -6 -6 -5 -5 -5 -5 -4 -4 -4 -4 -4 -4 -4 -4 -3 ------- Run | Scr Mat Min Mat Sto Gar Mat Gar Fac Gar Fac Gar Fac Gar Fac Gar Fac Gar Fac Gar Fac Was Fac Ext Cet Arc Hub Gar Res Slots Evolved 14 | . . . 2 . . 2 . 2 . . . 2 . . . 2 . . . 2 . . . . . . . 2 Power . | . . . . . . . . . . . . . . . . . . . . . . . . . . . . . Propulsion 2 | . . . 1 . . . . 1 . . . . . . . . . . . . . . . . . . . . Utility 12 | . . . 1 . . 2 . 1 . . . 2 . . . 2 . . . 2 . . . . . . . 2 Weapon . | . . . . . . . . . . . . . . . . . . . . . . . . . . . . . Parts Attached 607 | 8 27 5 9 22 3 39 15 23 36 9 17 39 18 53 23 42 25 5 13 43 2 21 23 9 1 12 19 46 Power 26 | 1 1 . . 1 . 1 1 1 4 1 3 3 2 3 1 . 1 . . . . . . 1 . . . 1 Engine 11 | 1 1 . . 1 . 1 . 1 . . . 2 1 2 1 . . . . . . . . . . . . . Core 13 | . . . . . . . 1 . 4 1 3 1 1 1 . . 1 . . . . . . . . . . . Reactor 2 | . . . . . . . . . . . . . . . . . . . . . . . . 1 . . . 1 Propulsion 122 | 3 10 4 3 8 . 15 6 5 11 2 7 7 7 14 1 3 . . 2 2 1 2 . 3 . . 1 5 Treads 48 | 1 4 2 2 6 . 9 5 1 . . . . . 5 . 3 . . 1 1 1 2 . 3 . . 1 1 Leg 38 | . 2 . . . . . . . 5 . 7 7 7 8 . . . . 1 . . . . . . . . 1 Wheel 29 | 2 4 2 1 2 . 6 1 4 1 . . . . 1 1 . . . . 1 . . . . . . . 3 Hover . | . . . . . . . . . . . . . . . . . . . . . . . . . . . . . Flight 7 | . . . . . . . . . 5 2 . . . . . . . . . . . . . . . . . . Utility 201 | 1 6 . 3 3 1 10 5 6 7 4 3 13 4 23 11 14 14 2 1 13 1 9 8 1 . 8 9 21 Device 83 | . 2 . 1 . . 3 . 2 2 1 . 3 2 11 8 7 6 . . 4 1 4 5 . . 6 4 11 Storage 11 | 1 1 . 1 1 . 1 . . 2 . 1 . . 1 . . . . . . . 1 . . . . . 1 Processor 7 | . . . 1 . . 2 . . . 1 . 1 . . . . . . . 1 . 1 . . . . . . Hackware 57 | . . . . 1 . . 2 3 3 . 1 6 1 7 3 4 5 2 1 6 . 1 . . . 1 3 7 Protection 43 | . 3 . . 1 1 4 3 1 . 2 1 3 1 4 . 3 3 . . 2 . 2 3 1 . 1 2 2 Artifact . | . . . . . . . . . . . . . . . . . . . . . . . . . . . . . Weapon 258 | 3 10 1 3 10 2 13 3 11 14 2 4 16 5 13 10 25 10 3 10 28 . 10 15 4 1 4 9 19 Energy Gun 7 | 2 1 . . 2 . 1 . . . . . . . . . . . . . . . . . 1 . . . . Energy Cannon 18 | . . . . 1 . . . . 1 . . . . 2 2 5 . . . 2 . . 4 . . . 1 . Ballistic Gun 54 | 1 1 . . 2 1 2 . 2 2 . 1 2 1 4 2 7 3 1 1 8 . 3 3 1 . . 1 5 Ballistic Cannon 58 | . 5 1 3 2 1 6 2 3 4 . 3 7 2 . . . 2 . 2 2 . 2 3 1 1 1 2 3 Launcher 9 | . . . . . . 2 . . 1 . . . . . . . . 1 . 1 . . . . . . 1 3 Special Weapon 49 | . 3 . . 2 . . . . . . . 2 1 2 2 5 2 1 5 8 . 4 3 1 . 1 2 5 Impact Weapon 13 | . . . . 1 . 1 . . . . . . . . . . . . . 6 . 1 1 . . . 1 2 Slashing Weapon 22 | . . . . . . 1 . 3 4 1 . 1 1 1 3 4 2 . 1 . . . . . . . . . Piercing Weapon 8 | . . . . . . . . . . . . . . . . 1 . . 1 1 . . 1 . . 2 1 1 Special Melee Weapon 20 | . . . . . . . 1 3 2 1 . 4 . 4 1 3 1 . . . . . . . . . . . Unidentified Prototypes 10 | . . . . 4 . 1 . . . . . . . . . . . . . . . 1 . 4 . . . . Parts Lost 95 | . 4 . . 4 1 12 2 6 15 2 3 4 7 4 1 1 3 . . 1 . . . 1 . 1 . 23 Power 12 | . 1 . . . . 1 . 1 2 . 1 . 1 3 . . 1 . . . . . . . . . . 1 Propulsion 29 | . 1 . . 3 . 3 . 4 6 . . 1 3 1 1 1 . . . . . . . 1 . . . 4 Utility 36 | . 1 . . 1 . 7 2 1 1 1 2 2 . . . . 2 . . 1 . . . . . 1 . 14 Weapon 18 | . 1 . . . 1 1 . . 6 1 . 1 3 . . . . . . . . . . . . . . 4 Highest Loss Streak 23 | . 2 . . 2 1 5 1 3 7 1 2 1 5 2 1 1 3 . . 1 . . . 1 . 1 . 23 To Critical Strikes 1 | . . . . . . . . . . . . . . . . . . . . . . . . 1 . . . . Average Slot Usage (%) 93 | . 99 100 100 99 100 97 97 97 90 96 96 99 99 99 99 92 83 88 88 88 89 88 89 88 89 89 88 87 Engine 4 | . 14 14 11 11 11 9 7 6 . . . 5 5 4 6 5 3 . . . . . . . . . . . Core 2 | . . . . . . . 1 . 6 7 5 . . 1 . . 1 5 5 5 5 5 5 . . . . . Treads 10 | . 13 15 11 23 33 17 18 14 . . . . . 8 23 14 11 11 11 9 10 9 10 9 10 10 10 8 Leg 5 | . . . . . . . . . 10 . 24 26 26 16 . . . . . . . . . . . . . . Wheel 2 | . 13 12 22 9 . 9 8 13 3 . . . . . 2 1 . . . . . . . . . . . . Device 4 | . 2 . 1 . . 4 . 3 8 7 3 3 5 3 7 3 4 10 5 4 3 1 2 5 5 5 9 13 Storage 6 | . 14 14 11 11 11 9 9 7 5 . 2 6 6 6 6 5 5 5 5 5 5 5 5 5 5 5 5 4 Processor 11 | . . . 9 11 11 13 19 15 15 15 15 13 13 13 13 11 11 11 11 10 10 12 15 10 10 10 10 8 Hackware 21 | . . . . . . . 5 14 14 17 18 22 20 25 18 30 24 17 29 36 42 41 36 36 36 35 26 29 Protection 6 | . 10 14 11 11 11 15 9 3 . 4 4 5 6 2 6 5 6 10 5 5 1 1 2 5 5 4 9 6 Ballistic Gun 3 | . 9 14 1 10 4 7 . 1 1 . 3 3 5 2 . 3 2 3 5 2 . 1 1 4 5 4 2 2 Ballistic Cannon 4 | . 13 10 20 9 17 8 16 7 5 . 6 5 3 . . . 3 4 . 1 . 2 3 3 5 . 2 1 Special Weapon 1 | . 1 . . . . . . . . . . . . 3 4 1 1 . 3 3 5 3 2 2 . 2 1 . Slashing Weapon 1 | . . . . . . 1 . 3 5 7 3 1 1 5 4 3 1 1 . . . . . . . . . . Naked Turns . | . . . . . . . . . . . . . . . . . . . . . . . . . . . . . Heaviest Build 137 | 12 33 33 40 60 62 67 62 66 98 14 56 84 89 102 116 119 133 135 110 131 103 115 121 133 129 129 135 137 Greatest Support 160 | 16 20 40 32 60 60 42 40 40 48 18 48 64 61 118 118 140 140 140 140 140 140 150 150 155 155 155 160 160 Greatest Overweight (x) 10 | 1 3 2 1 3 1 6 6 5 5 . 1 1 1 4 9 9 . . 1 10 . . . . . . . 6 Average Overweight (x) . | . 1 1 . . . 4 5 2 . . . . . . 4 1 . . . . . . . . . . . . Largest Inventory Capacity 25 | 8 15 15 15 20 20 20 20 20 25 5 20 20 20 25 25 25 25 25 25 25 25 25 25 25 25 25 25 25 Average Capacity 21 | 6 13 15 15 19 20 20 20 20 18 5 9 20 20 20 25 25 25 25 25 25 25 25 25 25 25 25 25 24 Most Carried 25 | 6 15 11 15 17 19 20 20 20 19 5 20 20 20 21 25 25 25 25 25 25 25 25 25 25 25 25 25 25 Average Carried 19 | 3 11 10 14 14 15 18 18 19 11 4 7 19 18 19 23 24 24 25 24 24 24 24 24 24 25 24 24 23 Final Capacity 25 | 8 15 15 15 20 20 20 20 20 5 5 20 20 20 25 25 25 25 25 25 25 25 25 25 25 25 25 25 5 Final Carried 25 | 6 10 11 15 17 19 17 20 19 5 5 20 15 20 20 25 25 25 25 25 25 25 25 24 25 25 23 25 5 Class Distribution -------------------- 64% | Botlord-Mutant 14% | Mutant 12% | Scavenger-Mutant 6% | Bothacker-Mutant Dominant Class ---------------- Mutant | -10/Materials Mutant | -10/Mines Mutant | -9/Materials Mutant | -9/Storage Mutant | -9/Garrison Scavenger-Mutant | -8/Materials Bothacker-Mutant | -8/Garrison Bothacker-Mutant | -7/Factory Bothacker-Mutant | -7/Garrison Sprinter | -7/Factory Scavenger-Mutant | -7/Garrison Botlord-Mutant | -6/Factory Botlord-Mutant | -6/Garrison Botlord-Mutant | -6/Factory Botlord-Mutant | -6/Garrison Botlord-Mutant | -5/Factory Botlord-Mutant | -5/Garrison Botlord-Mutant | -5/Factory Botlord-Mutant | -5/Garrison Botlord-Mutant | -4/Factory Botlord-Mutant | -4/Waste Botlord-Mutant | -4/Factory Botlord-Mutant | -4/Extension Botlord-Mutant | -4/Cetus Botlord-Mutant | -4/Archives Botlord-Mutant | -4/Hub_04(d) Botlord-Mutant | -4/Garrison Botlord-Mutant | -3/Research Resources | -11 -10 -10 -9 -9 -9 -8 -8 -7 -7 -7 -7 -6 -6 -6 -6 -5 -5 -5 -5 -4 -4 -4 -4 -4 -4 -4 -4 -3 ----------- Run | Scr Mat Min Mat Sto Gar Mat Gar Fac Gar Fac Gar Fac Gar Fac Gar Fac Gar Fac Gar Fac Was Fac Ext Cet Arc Hub Gar Res Matter Collected 13982 | 259 414 565 188 550 210 1035 345 322 498 88 599 896 493 675 526 771 520 68 395 1332 93 552 814 177 50 174 508 865 Remotely . | . . . . . . . . . . . . . . . . . . . . . . . . . . . . . Salvage Created 11042 | . 361 132 56 597 308 1190 281 100 427 . 657 853 378 549 395 942 273 95 263 780 471 . 391 39 53 . 527 924 Parts 512 | . 22 6 5 41 18 62 12 10 24 . 30 51 15 36 13 30 13 5 20 28 6 . 13 2 1 . 13 36 Haulers Intercepted 5 | . . . 1 . . 3 . . . . . . . . . . . . . 1 . . . . . . . . Recyclers Shooed 13 | . 1 . . . . 1 . 1 . . . 2 . 1 . . . 1 . 3 . 1 2 . . . . . Parts Field Recycled . | . . . . . . . . . . . . . . . . . . . . . . . . . . . . . Retrieved Matter . | . . . . . . . . . . . . . . . . . . . . . . . . . . . . . Parts Self-Destructed . | . . . . . . . . . . . . . . . . . . . . . . . . . . . . . Prevented . | . . . . . . . . . . . . . . . . . . . . . . . . . . . . . Kills | -11 -10 -10 -9 -9 -9 -8 -8 -7 -7 -7 -7 -6 -6 -6 -6 -5 -5 -5 -5 -4 -4 -4 -4 -4 -4 -4 -4 -3 ------- Run | Scr Mat Min Mat Sto Gar Mat Gar Fac Gar Fac Gar Fac Gar Fac Gar Fac Gar Fac Gar Fac Was Fac Ext Cet Arc Hub Gar Res Combat Hostiles Destroyed 247 | . 12 5 1 19 11 33 11 2 16 . 18 21 10 7 8 10 8 1 4 12 2 . 7 1 . . 10 18 Melee 36 | . . . . . . . . 2 3 . 3 6 4 5 3 1 . . 1 3 2 . 1 . . . 1 1 Guns 67 | . 3 4 . 10 1 7 . . 2 . 2 6 4 2 1 7 3 . 3 3 . . 1 . . . 2 6 Cannons 123 | . 9 1 1 9 10 18 11 . 9 . 13 9 2 . 3 2 5 . . 5 . . 5 1 . . 3 7 AOE 18 | . . . . . . 8 . . 2 . . . . . . . . 1 . . . . . . . . 3 4 Classes Destroyed 18 | . 4 . 2 2 . 3 1 1 1 . . 1 . 1 . . . . . 1 1 . . . . . . . Worker 9 | . . . . 1 . 2 . . . . . . . . . . . 3 . 3 . . . . . . . . Builder 6 | . . . . . . . . 1 . . . . . . . 1 . . . 3 . . . . . . . 1 Hauler 5 | . . . 1 . . 3 . . . . . . . . . . . . . 1 . . . . . . . . Recycler 8 | . 1 . . . . 1 . 1 . . . 1 . 1 . 3 . . . . . . . . . . . . Operator 3 | . . . 1 . . 1 . . . . . 1 . . . . . . . . . . . . . . . . Watcher 3 | . 1 . . . . 1 . . . . . 1 . . . . . . . . . . . . . . . . Swarmer 56 | . 6 3 . 3 2 6 . 2 6 . 3 10 3 . 2 2 2 . 3 3 . . . . . . . . Cutter 3 | . . . . . . . . . 3 . . . . . . . . . . . . . . . . . . . Grunt 112 | . 6 2 1 10 9 14 4 . 7 . 10 4 4 1 4 4 4 1 1 4 . . 1 . 1 . 8 12 Brawler 9 | . . . . . . 2 2 . . . 2 . . . . . . . . . . . 2 . . . 1 . Duelist 11 | . . . . . . 3 3 . 1 . 1 . . . . . 1 . . 1 . . . . . . . 1 Protector 3 | . . . . . . 2 . . . . . . . . . . . . . . . . . . . . . 1 Sentry 27 | . . . . 6 . 6 . . . . 1 4 2 1 1 1 . . . 1 . . 2 . . . 1 1 Specialist 3 | . . . . . . . . . . . . . . 1 . . 1 . 1 . . . . . . . . . Hunter 8 | . . . . . . . 2 . . . 1 . . 3 . . . . . 1 . . 1 . . . . . Programmer 17 | . . . . . . . . . . . . 3 1 3 1 3 . . 1 1 . . 1 . . . . 3 Heavy 1 | . . . . . . . . . . . . . . . . . . . . 1 . . . . . . . . Compactor 2 | . . . . . . . . . . . . . . . . . . . . . 2 . . . . . . . Cetus Guard 1 | . . . . . . . . . . . . . . . . . . . . . . . . 1 . . . . Best Kill Streak 9 | . 3 3 1 6 3 9 3 2 7 . 4 5 4 3 2 3 4 3 2 9 1 . 3 1 . . 3 5 Combat Bots Only 8 | . 3 3 1 6 3 8 3 1 7 . 4 5 4 2 2 2 4 1 2 6 1 . 3 1 . . 3 5 Max Kills in Single Turn 3 | . 1 1 1 1 2 3 1 1 2 . 1 1 1 1 1 2 1 3 2 2 1 . 1 1 1 . 2 1 Gunslinging . | . . . . . . . . . . . . . . . . . . . . . . . . . . . . . Exploded 2 | . . . . . . 2 . . 2 . . . . . . . . 1 . . . . . . . . 2 1 Melee 1 | . . . . . . . . 1 1 . 1 1 1 1 1 1 . . 1 1 1 . 1 . . . 1 1 Uniques/NPCs Destroyed . | . . . . . . . . . . . . . . . . . . . . . . . . . . . . . Combat | -11 -10 -10 -9 -9 -9 -8 -8 -7 -7 -7 -7 -6 -6 -6 -6 -5 -5 -5 -5 -4 -4 -4 -4 -4 -4 -4 -4 -3 -------- Run | Scr Mat Min Mat Sto Gar Mat Gar Fac Gar Fac Gar Fac Gar Fac Gar Fac Gar Fac Gar Fac Was Fac Ext Cet Arc Hub Gar Res Damage Taken 23227 | . 1015 111 42 746 308 1558 571 737 1577 150 719 1265 1071 1224 761 910 1987 131 336 381 . 192 745 202 137 229 723 5399 Core 3611 | . 149 10 11 94 6 192 113 87 308 32 180 116 91 225 116 80 177 34 67 35 . 33 51 13 . 13 63 1315 Absorbed by Shields 467 | . . . . . . . 41 . . . 98 . . . . . . . . . . . 110 77 42 17 24 58 Reduced by Siege Mode 435 | . . . . . . . . . . . . . . . . 16 109 . . . . . . . 17 . 22 271 Redirected to Shielding 136 | . . . . . . . . . . 32 104 . . . . . . . . . . . . . . . . . Regen/Repaired (Parts) 1820 | . . . . . . . . . . . . 41 . 668 . 345 . . . 357 . 409 . . . . . . Core Remaining (%) 55 | 100 . 36 . . 72 . 44 . . . 13 . . . 35 . . . 64 . . . . . . . 81 . Volleys Fired 919 | . 43 8 8 42 19 80 34 2 27 . 53 57 35 32 60 55 36 8 32 80 9 12 63 6 4 8 43 63 Largest 2 | . 2 2 2 2 2 2 2 2 2 . 2 2 2 2 2 2 2 2 2 2 1 2 2 2 2 2 2 2 Hottest 135 | . 135 70 88 100 88 88 88 92 72 . 76 81 101 85 75 98 73 73 73 110 7 73 110 97 75 75 88 101 Shots Fired 1402 | . 83 16 16 81 37 154 66 4 36 . 66 90 50 36 69 84 58 10 36 108 9 13 88 11 8 9 56 108 Gun 498 | . 46 12 . 39 14 72 . . 9 . 14 33 16 9 18 58 24 2 9 31 . 1 25 . 4 1 15 46 Cannon 612 | . 32 4 16 40 23 76 66 4 25 . 52 44 21 2 29 8 22 2 1 30 . 1 31 10 4 1 23 45 Launcher 17 | . . . . . . 6 . . 2 . . . . . . . . 1 . . . . . . . . 3 5 Special 275 | . 5 . . 2 . . . . . . . 13 13 25 22 18 12 5 26 47 9 11 32 1 . 7 15 12 Kinetic 1042 | . 69 13 16 79 37 148 66 4 34 . 66 77 37 9 18 58 46 4 10 59 . 2 51 10 8 2 28 91 Thermal 29 | . 14 3 . 2 . . . . . . . . . 2 . 5 . . . 2 . . 1 . . . . . Explosive 17 | . . . . . . 6 . . 2 . . . . . . . . 1 . . . . . . . . 3 5 Electromagnetic 46 | . . . . . . . . . . . . . . . 29 3 . . . . . . 4 . . . 10 . Robot Hit Streak 34 | . 12 7 5 15 8 17 8 2 7 . 16 18 10 12 17 21 18 10 10 26 13 6 18 7 5 9 34 31 Robot Miss Streak 10 | . 6 3 4 5 7 6 5 1 4 . 3 10 9 2 2 3 2 1 1 3 1 1 4 1 1 1 1 2 Penetration Max 1 | . . . . . . . . . . . . . 1 . . 1 1 . . 1 . . 1 . 1 . 1 1 Secondary Targets 2 | . . 1 . . . . . . . . . . . . . 1 . . . . . . . . . . . . Max Gunslinging Chain 1 | . . 1 . . . . . . . . . . . . . 1 . . . . . . . . . . . . Shots Hit Robots 1239 | . 51 12 12 64 29 120 50 13 46 2 58 95 46 59 61 81 47 9 28 93 18 10 70 9 6 10 55 85 Core Hits 652 | . 20 6 8 51 27 110 37 5 41 . 41 80 32 11 10 24 18 6 6 22 4 1 14 3 4 . 22 49 Critical Kills 6 | . . . . . . . . . . . . . . . . . . . . 1 . . 1 . . . 1 3 Critical Parts Destroyed 13 | . 1 1 . . . 1 . . . . . . . . . 1 . . . 2 . . . . . . 2 5 Critical Strikes 53 | . 1 3 1 . 1 2 4 . 2 . 4 3 1 1 3 2 2 . 1 5 . . 2 . 1 . 4 10 Burn 1 | . . 1 . . . . . . . . . . . . . . . . . . . . . . . . . . Destroy 17 | . 1 1 . . . 1 . . . . . . . . . 1 . . . 1 . . . . . . 3 9 Blast 18 | . . 1 1 . 1 1 4 . . . 4 . . . . . 2 . . 2 . . . . 1 . . 1 Corrupt 2 | . . . . . . . . . . . . . . . 1 1 . . . . . . . . . . . . Smash 3 | . . . . . . . . . . . . . . . . . . . . 2 . . 1 . . . . . Sever 9 | . . . . . . . . . 2 . . 3 1 1 2 . . . . . . . . . . . . . Impale 3 | . . . . . . . . . . . . . . . . . . . 1 . . . 1 . . . 1 . Melee Attacks 328 | . . . . 2 . 8 1 22 29 17 8 37 8 57 15 42 2 . 3 37 11 5 10 . . 2 8 4 Impact 50 | . . . . 2 . 1 . . . . . . . . . . . . . 37 . 5 3 . . . . 2 Slashing 202 | . . . . . . 7 . 16 25 15 8 29 8 49 14 29 1 . 1 . . . . . . . . . Piercing 37 | . . . . . . . . . . . . . . . . 5 . . 2 . 11 . 7 . . 2 8 2 Sneak Attacks 69 | . . . . . . 1 . 6 . 2 . 6 . 10 8 11 . . 1 4 11 . 1 . . 2 6 . Combat Hostiles 35 | . . . . . . . . 2 . . . . . 2 7 2 . . 1 1 11 . 1 . . 2 6 . Follow-up Attacks 3 | . . . . . . . . . 2 . . . . . . . . . . . . . 1 . . . . . Damage Inflicted 31357 | . 796 176 169 1186 569 3446 1049 300 1309 . 1523 1779 768 1200 1638 1861 1237 481 212 2029 369 152 1456 316 251 205 2212 4668 Guns 8775 | . 380 120 . 546 158 807 . . 103 . 238 427 237 166 448 1409 536 54 124 597 . 21 537 . 141 29 480 1217 Cannons 12642 | . 413 56 169 635 411 1338 1049 89 544 . 1091 567 335 . 547 99 701 86 30 809 . 36 759 316 110 . 747 1705 Explosions 3906 | . . . . . . 1231 . . 116 . . . . . . . . 297 . . . . . . . . 563 1699 Melee 5788 | . . . . . . 70 . 210 546 . 190 776 196 1034 643 340 . . 58 586 369 . 125 . . 176 422 47 Ramming 246 | . 3 . . 5 . . . 1 . . 4 9 . . . 13 . 44 . 37 . 95 35 . . . . . Kinetic 20311 | . 743 135 169 1181 569 2145 1049 89 647 . 1329 994 572 166 448 1409 1237 140 154 1406 . 57 1210 316 251 29 944 2922 Thermal 91 | . 50 41 . . . . . . . . . . . . . . . . . . . . . . . . . . Explosive 3906 | . . . . . . 1231 . . 116 . . . . . . . . 297 . . . . . . . . 563 1699 Electromagnetic 1015 | . . . . . . . . . . . . . . . 547 99 . . . . . . 86 . . . 283 . Impact 624 | . . . . . . . . . . . . . . . . . . . . 586 . . 38 . . . . . Slashing 3795 | . . . . . . 70 . 210 546 . 190 776 196 1034 643 130 . . . . . . . . . . . . Piercing 1369 | . . . . . . . . . . . . . . . . 210 . . 58 . 369 . 87 . . 176 422 47 Highest Corruption 9 | . 4 4 . . . 1 1 . . . . 1 4 7 9 3 . 1 1 . . . 2 . . 1 . 4 Average Corruption 3 | . 4 4 . . . 1 1 . . . . 1 3 5 8 1 . 1 1 . . . 1 . . 1 . 1 Corruption Purged 11 | . . . . . . . . . . . . . . . . 5 . . . . . . 2 . . 1 . 3 Corruption Blocked . | . . . . . . . . . . . . . . . . . . . . . . . . . . . . . Effects 163 | . 5 7 . . . 10 6 . . . . 11 26 52 33 . . . 7 . . . 1 . . . . 5 Message Errors 34 | . 1 3 . . . 3 . . . . . 4 3 10 8 . . . 2 . . . . . . . . . Matter Fused 38 | . 1 1 . . . 2 4 . . . . 1 6 12 9 . . . . . . . . . . . . 2 Heat Flow Errors 32 | . 2 . . . . 3 1 . . . . 2 6 13 4 . . . 1 . . . . . . . . . Energy Discharges 21 | . 1 . . . . 1 1 . . . . 1 6 3 4 . . . 3 . . . . . . . . 1 Parts Rejected 3 | . . . . . . . . . . . . . . 1 1 . . . . . . . . . . . . 1 Data Loss (minor) 22 | . . 1 . . . 1 . . . . . 3 4 6 5 . . . 1 . . . 1 . . . . . Data Loss (major) 6 | . . . . . . . . . . . . . . 4 1 . . . . . . . . . . . . 1 Misfires 2 | . . 1 . . . . . . . . . . 1 . . . . . . . . . . . . . . . Alerts 4 | . . . . . . . . . . . . . . 3 1 . . . . . . . . . . . . . Weapon Failures 1 | . . 1 . . . . . . . . . . . . . . . . . . . . . . . . . . Overload Shots . | . . . . . . . . . . . . . . . . . . . . . . . . . . . . . Overflow Damage 899 | . . . . . . 7 9 57 25 . 23 76 6 93 3 34 . . . 298 . . 40 . . 27 5 196 Projectiles 225 | . . . . . . 1 9 19 8 . 23 . 6 . 3 . . . . 6 . . 23 . . . 5 122 Explosions 89 | . . . . . . 6 . . 9 . . . . . . . . . . . . . . . . . . 74 Melee 585 | . . . . . . . . 38 8 . . 76 . 93 . 34 . . . 292 . . 17 . . 27 . . Knockbacks 170 | . 3 1 1 10 12 34 20 3 11 . 12 17 9 . . . 8 1 . 3 . 2 4 . . . 4 15 Impact 3 | . . . . . . . . . . . . . . . . . . 1 . 1 . 1 . . . . . . Kinetic 156 | . 3 1 1 10 12 28 20 3 11 . 11 15 9 . . . 7 . . 2 . 1 3 . . . 4 15 Secondary 11 | . . . . . . 6 . . . . 1 2 . . . . 1 . . . . . 1 . . . . . Self-Inflicted Damage 387 | . . . . . . 151 . . 57 . . . . . . . . . . . . . . . . . . 179 Shots 8 | . . . . . . 3 . . 2 . . . . . . . . . . . . . . . . . . 3 Rammed 21 | . 1 . . 1 . . . 3 . . . . . 1 . 1 . 3 . 3 . 6 2 . . . . . Targets Rammed 26 | . 1 . . 2 . . . 3 . . 1 2 . 1 . 1 . 3 . 4 . 6 2 . . . . . Kicked 3 | . . . . . . . . . . . 1 2 . . . . . . . . . . . . . . . . Crushed 2 | . . . . 1 . . . . . . . . . . . . . . . 1 . . . . . . . . Highest Temperature 436 | . 182 54 81 81 110 248 211 36 8 12 68 241 436 265 263 68 297 45 152 54 . . 40 13 1 . . 70 Average Temperature 63 | . 48 19 28 29 43 84 75 19 5 6 28 39 142 100 114 30 81 15 80 30 . . 15 7 1 . . 29 Received Heat Transfer 5403 | . 246 39 15 228 135 594 225 72 297 48 268 231 270 225 135 72 798 30 27 9 . 18 104 16 14 16 219 1052 Effects 6 | . . . . . . 1 2 . . . . . 1 . . . 2 . . . . . . . . . . . Shutdowns 1 | . . . . . . . . . . . . . 1 . . . . . . . . . . . . . . . Energy Bleed 1 | . . . . . . 1 . . . . . . . . . . . . . . . . . . . . . . Interference 4 | . . . . . . . 2 . . . . . . . . . 2 . . . . . . . . . . . Siege Activations 16 | . . . . . . . . . . . . . . . . 3 3 . . 1 . . 1 1 1 . 1 5 Total Turns 281 | . . . . . . . . . . . . . . . . 62 50 . . 26 . . 3 2 8 . 37 93 Longest Duration 41 | . . . . . . . . . . . . . . . . 25 41 . . 26 . . 3 2 8 . 37 35 Robots Corrupted 2 | . . . . . . . . . . . . . . . 1 . . . . . . . . . . . 1 . Combat Hostiles 2 | . . . . . . . . . . . . . . . 1 . . . . . . . . . . . 1 . Parts Fried 7 | . . . . . . . . . . . . . . . 2 . . . . 4 . . . . . . 1 . Impact Corruptions 11 | . . . . . . . . . . . . . . . . . . . . 11 . . . . . . . . Robots Melted . | . . . . . . . . . . . . . . . . . . . . . . . . . . . . . Combat Hostiles . | . . . . . . . . . . . . . . . . . . . . . . . . . . . . . Parts Melted 3 | . . 2 . . . . . . . . . . . 1 . . . . . . . . . . . . . . Heat Transferred 333 | . 148 185 . . . . . . . . . . . . . . . . . . . . . . . . . . Parts Sabotaged . | . . . . . . . . . . . . . . . . . . . . . . . . . . . . . Parts Stolen . | . . . . . . . . . . . . . . . . . . . . . . . . . . . . . Parts Stripped . | . . . . . . . . . . . . . . . . . . . . . . . . . . . . . Power Chain Reactions . | . . . . . . . . . . . . . . . . . . . . . . . . . . . . . Missiles Intercepted 5 | . . . . . . . . . . . . . . . . . . . . . . . 1 . . 1 . 3 Alert | -11 -10 -10 -9 -9 -9 -8 -8 -7 -7 -7 -7 -6 -6 -6 -6 -5 -5 -5 -5 -4 -4 -4 -4 -4 -4 -4 -4 -3 ------- Run | Scr Mat Min Mat Sto Gar Mat Gar Fac Gar Fac Gar Fac Gar Fac Gar Fac Gar Fac Gar Fac Was Fac Ext Cet Arc Hub Gar Res Peak Influence 1095 | . 277 138 176 528 725 880 857 471 217 306 842 884 310 205 343 180 288 224 250 389 111 1000 988 803 453 831 950 1095 Initial 552 | . . 18 53 13 245 352 492 449 . 113 235 441 65 162 39 179 44 151 142 130 111 36 414 552 321 158 482 534 Average 359 | . 58 120 90 300 491 637 696 270 137 202 584 537 140 59 204 63 184 181 191 220 64 659 505 673 405 494 757 732 Maximum Alert Level 3 | . 1 . . 2 3 3 3 2 1 1 3 3 1 1 1 . 1 1 1 1 . 3 3 3 2 3 3 3 Low Security (%) 41 | 100 95 100 100 33 . . . 47 89 53 . 16 68 98 45 100 48 62 53 52 100 8 . . . 35 . . Level 1 15 | . 4 . . 23 13 4 . . 10 46 26 . 31 1 54 . 51 37 46 47 . 4 5 . 33 5 . . Level 2 26 | . . . . 42 74 61 46 51 . . 36 57 . . . . . . . . . 27 89 78 66 22 28 60 Level 3 16 | . . . . . 11 33 53 . . . 37 25 . . . . . . . . . 58 5 21 . 36 71 39 Level 4 . | . . . . . . . . . . . . . . . . . . . . . . . . . . . . . Level 5 . | . . . . . . . . . . . . . . . . . . . . . . . . . . . . . High Security . | . . . . . . . . . . . . . . . . . . . . . . . . . . . . . Max Security . | . . . . . . . . . . . . . . . . . . . . . . . . . . . . . Squads Dispatched 91 | . 3 . 2 8 . 6 . 2 . 1 . 10 . 15 . 4 . 1 . 10 . 8 4 . . 5 . 12 Investigation 14 | . 2 . 1 2 . 1 . . . 1 . . . 2 . 1 . . . . . 2 . . . . . 2 Extermination 11 | . . . . . . . . . . . . 2 . 3 . 1 . . . 2 . 1 . . . . . 2 Reinforcement 32 | . 1 . 1 1 . 2 . 1 . . . 3 . 7 . 2 . 1 . 5 . 2 2 . . 3 . 1 Assault 16 | . . . . . . 3 . . . . . . . 1 . . . . . . . 3 2 . . 1 . 6 Garrison 18 | . . . . 5 . . . 1 . . . 5 . 2 . . . . . 3 . . . . . 1 . 1 Intercept . | . . . . . . . . . . . . . . . . . . . . . . . . . . . . . Searches Triggered . | . . . . . . . . . . . . . . . . . . . . . . . . . . . . . Construction Impeded 4 | . . . . . . 1 . . . . . . . 1 . . . . . 1 . 1 . . . . . . Haulers Reinforced 2 | . . . . . . . . . . . . . . . . 1 . . . 1 . . . . . . . . Active Scanning Responses . | . . . . . . . . . . . . . . . . . . . . . . . . . . . . . Cargo Convoy Interrupts . | . . . . . . . . . . . . . . . . . . . . . . . . . . . . . Alert ID Control Effect 140 | . . . . . . . . . . . . 5 2 15 8 7 8 4 8 42 . 8 20 . . 2 6 5 Stealth | -11 -10 -10 -9 -9 -9 -8 -8 -7 -7 -7 -7 -6 -6 -6 -6 -5 -5 -5 -5 -4 -4 -4 -4 -4 -4 -4 -4 -3 --------- Run | Scr Mat Min Mat Sto Gar Mat Gar Fac Gar Fac Gar Fac Gar Fac Gar Fac Gar Fac Gar Fac Was Fac Ext Cet Arc Hub Gar Res Distress Signals 26 | . . . . 2 . 3 . 1 . . . 2 . 2 . . . . . 5 . 1 6 1 . 2 . 1 Communications Jammed . | . . . . . . . . . . . . . . . . . . . . . . . . . . . . . Distress Signals . | . . . . . . . . . . . . . . . . . . . . . . . . . . . . . Times Spotted 704 | . 24 5 4 24 13 52 14 20 21 9 25 42 22 34 32 30 20 9 24 56 5 42 55 9 5 22 28 58 Peak Tracking Total 11 | . 8 3 1 5 3 8 4 10 8 6 6 4 5 4 6 5 5 4 7 7 2 9 7 5 2 5 6 11 Tactical Retreats 46 | . 1 . . 3 . 9 2 1 2 3 4 7 1 . 3 1 . . . 1 1 2 3 . . 1 1 . Traps | -11 -10 -10 -9 -9 -9 -8 -8 -7 -7 -7 -7 -6 -6 -6 -6 -5 -5 -5 -5 -4 -4 -4 -4 -4 -4 -4 -4 -3 ------- Run | Scr Mat Min Mat Sto Gar Mat Gar Fac Gar Fac Gar Fac Gar Fac Gar Fac Gar Fac Gar Fac Was Fac Ext Cet Arc Hub Gar Res Traps Triggered 41 | . 3 . 1 1 2 1 6 . 3 . 6 . 7 1 4 . . . 1 1 . 1 . . . . 2 1 Indirectly . | . . . . . . . . . . . . . . . . . . . . . . . . . . . . . Trap Hack Attempts . | . . . . . . . . . . . . . . . . . . . . . . . . . . . . . Triggered . | . . . . . . . . . . . . . . . . . . . . . . . . . . . . . Disarmed . | . . . . . . . . . . . . . . . . . . . . . . . . . . . . . Reprogrammed . | . . . . . . . . . . . . . . . . . . . . . . . . . . . . . Reused . | . . . . . . . . . . . . . . . . . . . . . . . . . . . . . Traps Extracted . | . . . . . . . . . . . . . . . . . . . . . . . . . . . . . Installed . | . . . . . . . . . . . . . . . . . . . . . . . . . . . . . Triggered 6 | . . . . . . . . . . . . 3 . 3 . . . . . . . . . . . . . . Machines | -11 -10 -10 -9 -9 -9 -8 -8 -7 -7 -7 -7 -6 -6 -6 -6 -5 -5 -5 -5 -4 -4 -4 -4 -4 -4 -4 -4 -3 ---------- Run | Scr Mat Min Mat Sto Gar Mat Gar Fac Gar Fac Gar Fac Gar Fac Gar Fac Gar Fac Gar Fac Was Fac Ext Cet Arc Hub Gar Res Machines Disabled 73 | . . . . 2 1 2 2 1 . . 3 5 2 1 3 2 3 . 3 26 . 3 7 . . 1 4 2 Max in Single Turn 2 | . . . . 1 1 2 1 1 . . 1 . 1 1 1 1 1 . 1 1 . . 1 . . . 1 1 Garrison Access 10 | . . . . . . . . . . 2 . 1 . 1 . 1 . . . 2 . 2 . . . 1 . . Garrison Relay 21 | . . . . . 1 . 2 . . . 3 . 2 . 3 . 3 . 3 . . . . . . . 4 . Energy Cycler 2 | . . . . . . . . . . . . . . . . . . . . . . . 2 . . . . . Machines Sabotaged . | . . . . . . . . . . . . . . . . . . . . . . . . . . . . . Garrisons Compromised . | . . . . . . . . . . . . . . . . . . . . . . . . . . . . . Overloaded Fab Kills . | . . . . . . . . . . . . . . . . . . . . . . . . . . . . . Hacking | -11 -10 -10 -9 -9 -9 -8 -8 -7 -7 -7 -7 -6 -6 -6 -6 -5 -5 -5 -5 -4 -4 -4 -4 -4 -4 -4 -4 -3 --------- Run | Scr Mat Min Mat Sto Gar Mat Gar Fac Gar Fac Gar Fac Gar Fac Gar Fac Gar Fac Gar Fac Was Fac Ext Cet Arc Hub Gar Res Machines Accessed 103 | . 7 . 2 6 . 6 . 5 . 15 . 6 . 11 . 10 . 3 . 8 . 10 7 . . 5 . 2 Terminals 59 | . 5 . 2 3 . 5 . 4 . 9 . 1 . 5 . 4 . 1 . 3 . 5 7 . . 4 . 1 Fabricators 11 | . . . . . . . . . . 1 . 2 . 2 . 2 . . . 2 . 1 . . . . . 1 Repair Stations 7 | . . . . . . . . . . . . 1 . 1 . 1 . 1 . 1 . 2 . . . . . . Recycling Units 7 | . 2 . . 2 . . . . . 2 . . . . . 1 . . . . . . . . . . . . Scanalyzers 1 | . . . . . . . . . . . . . . 1 . . . . . . . . . . . . . . Garrison Access 18 | . . . . 1 . 1 . 1 . 3 . 2 . 2 . 2 . 1 . 2 . 2 . . . 1 . . Total Hacks 283 | . 29 . 9 19 . 16 . 14 . 37 . 13 . 29 . 28 . 8 . 21 . 26 17 . . 11 . 6 Successful 166 | . 21 . 7 13 . 9 . 8 . 17 . 6 . 22 . 16 . 6 . 16 . 11 9 . . 3 . 2 Failed 117 | . 8 . 2 6 . 7 . 6 . 20 . 7 . 7 . 12 . 2 . 5 . 15 8 . . 8 . 4 Catastrophic 16 | . . . 1 1 . 1 . 1 . 1 . . . 1 . 3 . . . . . 4 1 . . 2 . . Database Lockouts . | . . . . . . . . . . . . . . . . . . . . . . . . . . . . . Manual 111 | . 19 . 5 10 . 9 . 11 . 10 . 3 . 6 . 8 . 4 . 10 . 6 5 1 . 1 . 3 Terminals 199 | . 27 . 9 16 . 15 . 13 . 29 . 4 . 13 . 16 . 6 . 9 . 13 17 . . 10 . 2 Fabricators 33 | . . . . . . . . . . 2 . 6 . 5 . 6 . . . 6 . 4 . . . . . 4 Repair Stations 15 | . . . . . . . . . . . . 1 . 2 . 2 . 1 . 2 . 7 . . . . . . Recycling Units 7 | . 2 . . 2 . . . . . 2 . . . . . 1 . . . . . . . . . . . . Scanalyzers 7 | . . . . . . . . . . . . . . 7 . . . . . . . . . . . . . . Garrison Access 22 | . . . . 1 . 1 . 1 . 4 . 2 . 2 . 3 . 1 . 4 . 2 . . . 1 . . Terminal Hacks 64 | . 14 . 5 5 . 4 . 2 . 7 . . . 5 . 5 . 3 . 2 . 3 7 . . 2 . . Part Schematic 4 | . 2 . . . . . . . . . . . . 1 . . . . . 1 . . . . . . . . Robot Analysis 4 | . 3 . 1 . . . . . . . . . . . . . . . . . . . . . . . . . Prototype ID Bank 10 | . . . 1 2 . 1 . 1 . 2 . . . . . . . 1 . . . 1 1 . . . . . Open Door 3 | . . . . . . . . . . . . . . . . . . . . . . . 3 . . . . . Branch Access Points 2 | . 1 . . . . . . . . . . . . . . . . . . . . 1 . . . . . . Emergency Access Points 2 | . 1 . . . . . . . . 1 . . . . . . . . . . . . . . . . . . Terminal Index 6 | . 1 . 1 1 . . . . . 1 . . . 1 . . . 1 . . . . . . . . . . Fabricator Index 1 | . . . . . . . . . . . . . . . . 1 . . . . . . . . . . . . Recycling Unit Index 1 | . 1 . . . . . . . . . . . . . . . . . . . . . . . . . . . Unreport Threat 5 | . 1 . 1 . . 1 . . . . . . . . . . . . . . . 1 1 . . . . . Locate Traps 11 | . 2 . . . . 1 . 1 . 2 . . . 2 . 1 . . . . . . 1 . . 1 . . Recall Investigation 1 | . . . . . . 1 . . . . . . . . . . . . . . . . . . . . . . Hauler Manifests 7 | . 1 . 1 1 . . . . . . . . . 1 . 1 . 1 . 1 . . . . . . . . Zone Layout 7 | . 1 . . 1 . . . . . 1 . . . . . 2 . . . . . . 1 . . 1 . . Fabricator Hacks 10 | . . . . . . . . . . 1 . 2 . 3 . 1 . . . 2 . . . . . . . 1 Network Status 7 | . . . . . . . . . . 1 . 1 . 1 . 1 . . . 2 . . . . . . . 1 Load Schematic 1 | . . . . . . . . . . . . . . 1 . . . . . . . . . . . . . . Build 2 | . . . . . . . . . . . . 1 . 1 . . . . . . . . . . . . . . Repair Station Hacks 9 | . . . . . . . . . . . . . . 2 . 2 . . . 1 . 4 . . . . . . Scan Component 5 | . . . . . . . . . . . . . . 1 . 1 . . . 1 . 2 . . . . . . Repair 4 | . . . . . . . . . . . . . . 1 . 1 . . . . . 2 . . . . . . Recycling Unit Hacks 3 | . . . . . . . . . . 2 . . . . . 1 . . . . . . . . . . . . Report Inventory 2 | . . . . . . . . . . 2 . . . . . . . . . . . . . . . . . . Retrieve Components 1 | . . . . . . . . . . . . . . . . 1 . . . . . . . . . . . . Scanalyzer 5 | . . . . . . . . . . . . . . 5 . . . . . . . . . . . . . . Insert Component 2 | . . . . . . . . . . . . . . 2 . . . . . . . . . . . . . . Analyze 3 | . . . . . . . . . . . . . . 3 . . . . . . . . . . . . . . Garrison Access Hacks 22 | . . . . 1 . 1 . 1 . 4 . 2 . 2 . 3 . 1 . 4 . 2 . . . 1 . . Unlock Access 10 | . . . . 1 . 1 . 1 . 1 . 1 . 2 . 1 . 1 . . . . . . . 1 . . Seal Access 8 | . . . . . . . . . . 2 . 1 . . . 1 . . . 2 . 2 . . . . . . Coupler Status 4 | . . . . . . . . . . 1 . . . . . 1 . . . 2 . . . . . . . . Unauthorized Hacks 53 | . 7 . 2 7 . 4 . 5 . 3 . 2 . 5 . 4 . 2 . 7 . 2 2 . . . . 1 Terminals 42 | . 5 . 2 5 . 4 . 5 . 3 . 1 . 5 . 2 . 2 . 4 . 2 2 . . . . . Track 11 | . 2 . 1 2 . 1 . 1 . . . . . 2 . . . . . 1 . 1 . . . . . . Assimilate 2 | . . . . . . . . 1 . 1 . . . . . . . . . . . . . . . . . . Botnet 22 | . 2 . 1 2 . 2 . 2 . 2 . . . 3 . 2 . 1 . 2 . 1 2 . . . . . Operators 7 | . 1 . . 1 . 1 . 1 . . . 1 . . . . . 1 . 1 . . . . . . . . Fabricators 7 | . . . . . . . . . . . . 1 . . . 2 . . . 3 . . . . . . . 1 Report 3 | . . . . . . . . . . . . . . . . 1 . . . 1 . . . . . . . 1 Liberate 4 | . . . . . . . . . . . . 1 . . . 1 . . . 2 . . . . . . . . Repair Stations . | . . . . . . . . . . . . . . . . . . . . . . . . . . . . . Recycling Units 4 | . 2 . . 2 . . . . . . . . . . . . . . . . . . . . . . . . Tunnel 4 | . 2 . . 2 . . . . . . . . . . . . . . . . . . . . . . . . Scanalyzers . | . . . . . . . . . . . . . . . . . . . . . . . . . . . . . Garrison Access . | . . . . . . . . . . . . . . . . . . . . . . . . . . . . . Data Cores Recovered . | . . . . . . . . . . . . . . . . . . . . . . . . . . . . . Used . | . . . . . . . . . . . . . . . . . . . . . . . . . . . . . Hacking Detections 78 | . 5 . 2 4 . 5 . 5 . 11 . 3 . 10 . 6 . 3 . 7 . 7 4 . . 4 . 2 Full Trace Events 5 | . . . . . . . . . . 1 . . . 2 . 1 . . . . . 1 . . . . . . Feedback Events 2 | . . . . . . . . . . 1 . . . 1 . . . . . . . . . . . . . . Corruption 1 | . . . . . . . . . . . . . . 1 . . . . . . . . . . . . . . Hackware Fried 1 | . . . . . . . . . . 1 . . . . . . . . . . . . . . . . . . Feedback Blocked . | . . . . . . . . . . . . . . . . . . . . . . . . . . . . . Robot Schematics Acquired . | . . . . . . . . . . . . . . . . . . . . . . . . . . . . . Robots Built 2 | . . . . . . . . . . . . 2 . . . . . . . . . . . . . . . . Authchips . | . . . . . . . . . . . . . . . . . . . . . . . . . . . . . Time 152 | . . . . . . . . . . . . 152 . . . . . . . . . . . . . . . . Total Robot Build Rating 10 | . . . . . . . . . . . . 10 . . . . . . . . . . . . . . . . Part Schematics Acquired 6 | . 2 . . . . . . . . . . . . 3 . . . . . 1 . . . . . . . . Parts Built 1 | . . . . . . . . . . . . . . 1 . . . . . . . . . . . . . . Authchips . | . . . . . . . . . . . . . . . . . . . . . . . . . . . . . Time 51 | . . . . . . . . . . . . . . 51 . . . . . . . . . . . . . . Total Part Build Rating 1 | . . . . . . . . . . . . . . 1 . . . . . . . . . . . . . . Parts Repaired 4 | . . . . . . . . . . . . . . 1 . 1 . . . . . 2 . . . . . . Time 253 | . . . . . . . . . . . . . . 50 . 50 . . . . . 153 . . . . . . Parts Recycled . | . . . . . . . . . . . . . . . . . . . . . . . . . . . . . Recycled Matter . | . . . . . . . . . . . . . . . . . . . . . . . . . . . . . Retrieved Matter . | . . . . . . . . . . . . . . . . . . . . . . . . . . . . . Retrieved Components 10 | . . . . . . . . . . . . . . . . 10 . . . . . . . . . . . . Parts Scanalyzed 2 | . . . . . . . . . . . . . . 2 . . . . . . . . . . . . . . Part Schematics Acquired 2 | . . . . . . . . . . . . . . 2 . . . . . . . . . . . . . . Parts Damaged . | . . . . . . . . . . . . . . . . . . . . . . . . . . . . . Bothacking | -11 -10 -10 -9 -9 -9 -8 -8 -7 -7 -7 -7 -6 -6 -6 -6 -5 -5 -5 -5 -4 -4 -4 -4 -4 -4 -4 -4 -3 ------------ Run | Scr Mat Min Mat Sto Gar Mat Gar Fac Gar Fac Gar Fac Gar Fac Gar Fac Gar Fac Gar Fac Was Fac Ext Cet Arc Hub Gar Res Used RIF Installer 9 | . . . . . 1 . 1 . 1 . 1 . 1 . 1 . 1 . 1 . . . . . . . 1 . Hotswap 1 | . . . . . . . . . . . . . . . 1 . . . . . . . . . . . . . Command Fork 1 | . . . . . . . 1 . . . . . . . . . . . . . . . . . . . . . Zone Cloak 1 | . . . . . . . . . . . . . . . . . 1 . . . . . . . . . . . Robot Detection 1 | . . . . . . . . . . . . . . . . . . . . . . . . . . . 1 . Alert ID Control 1 | . . . . . . . . . 1 . . . . . . . . . . . . . . . . . . . Autooverride 2 | . . . . . . . . . . . 1 . 1 . . . . . . . . . . . . . . . Autoassimilate 1 | . . . . . . . . . . . . . . . . . . . 1 . . . . . . . . . Robots Hacked 205 | . . . . . . . 1 5 2 1 . 7 8 20 14 23 8 3 20 40 6 10 8 2 1 10 10 6 Non-combat 39 | . . . . . . . . 2 . 1 . 4 . 6 . 7 . 1 . 15 . 1 . . . . . 2 Combat 166 | . . . . . . . 1 3 2 . . 3 8 14 14 16 8 2 20 25 6 9 8 2 1 10 10 4 Autooverrided 43 | . . . . . . . . . . . . . . 4 2 9 2 . 5 9 . . 6 . 1 3 1 1 Autoassimilated 16 | . . . . . . . . . . . . . . . . . . . 2 4 . 4 1 1 . 3 1 . Robot Hacks Applied 189 | . . . . . . . 1 6 2 2 . 14 8 25 15 19 7 3 15 37 8 6 1 1 . 4 8 7 parse_system 9 | . . . . . . . . . . . . . . 2 3 1 . . . . 1 . . 1 . . . 1 no_distress 8 | . . . . . . . . . . . . . . 1 . 2 . . . 5 . . . . . . . . start_evac 1 | . . . . . . . . . . . . . . . . . . . . 1 . . . . . . . . find_chute 5 | . . . . . . . . . . . . . . . . . . . . 5 . . . . . . . . ignore_repairs 8 | . . . . . . . . 1 . . . . . 1 . . . . . 5 . . . . . . . 1 map_walls 1 | . . . . . . . . . . . . . . . . . . . . . . . . . . . . 1 find_fabricator 4 | . . . . . . . . . . 1 . . . 1 . 1 . . . 1 . . . . . . . . find_dsf 1 | . . . . . . . . . . . . . . . . 1 . . . . . . . . . . . . drop_inventory 9 | . . . . . . . . . . 1 . 1 . . . 4 . . . 3 . . . . . . . . ignore_parts 2 | . . . . . . . . . . . . . . 1 . . . . . 1 . . . . . . . . find_station 1 | . . . . . . . . . . . . . . . . . . . . 1 . . . . . . . . purge_threat 7 | . . . . . . . . 2 . . . 5 . . . . . . . . . . . . . . . . locate_traps 1 | . . . . . . . . . . . . 1 . . . . . . . . . . . . . . . . reprogram_traps 3 | . . . . . . . . . . . . 1 . 2 . . . . . . . . . . . . . . block_reporting 1 | . . . . . . . . . . . . . . . . . . 1 . . . . . . . . . . map_route 4 | . . . . . . . . . . . . 1 . 1 . 2 . . . . . . . . . . . . mark_security 1 | . . . . . . . . . . . . 1 . . . . . . . . . . . . . . . . relay_feed 1 | . . . . . . . . . . . . . . 1 . . . . . . . . . . . . . . ignore_targets 7 | . . . . . . . . . . . . . . . . . . . . . 7 . . . . . . . find_garrison 1 | . . . . . . . . . . . . . . 1 . . . . . . . . . . . . . . link_fov 1 | . . . . . . . . . . . . . . . . . . . . . . 1 . . . . . . reboot_propulsion 1 | . . . . . . . . . . . . . . . . . . . . 1 . . . . . . . . spike_heat 1 | . . . . . . . . . . . . . . . . . . . . 1 . . . . . . . . reboot_system 18 | . . . . . . . . 1 . . . 1 1 4 3 . 1 1 1 2 . . 1 . . 1 1 . overwrite_iff 44 | . . . . . . . . 1 1 . . 1 5 4 5 5 1 . 8 5 . 2 . . . 1 3 2 streamctrl_high 2 | . . . . . . . . . 1 . . . . 1 . . . . . . . . . . . . . . formatsys_low 4 | . . . . . . . . . . . . 1 . 1 . 1 . . . 1 . . . . . . . . formatsys_high 43 | . . . . . . . 1 1 . . . 1 2 4 4 2 5 1 6 5 . 3 . . . 2 4 2 Relay Couplers Released 92 | . . . . . 4 . 6 . . 3 10 3 6 2 15 . 14 . 12 . . 1 . . . 2 14 . Machine Destruction 92 | . . . . . 4 . 6 . . 3 10 3 6 2 15 . 14 . 12 . . 1 . . . 2 14 . Attached 52 | . . . . . . . 2 3 2 . 1 5 1 7 3 3 5 2 1 5 . 1 . . . 1 3 7 Fabnet Peak Effective % . | . . . . . . . . . . . . . . . . . . . . . . . . . . . . . Robots Rewired 16 | . . . . . . . . . . . . . . . . . . . . . . . 16 . . . . . Allies Hacked 4 | . . . . . . . . . . . . . . . . . . . . . . 1 2 . . . . 1 Hacks Repelled . | . . . . . . . . . . . . . . . . . . . . . . . . . . . . . Allies | -11 -10 -10 -9 -9 -9 -8 -8 -7 -7 -7 -7 -6 -6 -6 -6 -5 -5 -5 -5 -4 -4 -4 -4 -4 -4 -4 -4 -3 -------- Run | Scr Mat Min Mat Sto Gar Mat Gar Fac Gar Fac Gar Fac Gar Fac Gar Fac Gar Fac Gar Fac Was Fac Ext Cet Arc Hub Gar Res Total Allies 223 | . . 3 . . . . 1 4 3 1 . 6 8 17 13 17 7 1 22 29 19 10 30 6 1 10 10 5 Largest Group 19 | . . 3 3 1 . . 1 2 2 1 . 3 3 4 3 3 4 3 9 14 19 18 15 10 10 9 9 5 Highest-Rated Group 781 | . . 40 40 16 . . 15 26 44 26 . 114 70 168 99 70 158 128 307 514 684 659 730 781 781 662 475 348 Highest-Rated Ally 159 | . . 16 16 16 . . 15 26 32 26 . 41 29 43 41 49 49 49 49 137 56 58 159 135 128 96 96 96 Total Orders 36 | . . . . . . . 1 1 . . . 7 . 7 . 1 3 . 6 1 . . 3 . . . 4 2 STAY 15 | . . . . . . . 1 1 . . . . . 1 . . 2 . 4 . . . 2 . . . 3 1 FOLLOW 6 | . . . . . . . . . . . . . . . . . 1 . 2 . . . 1 . . . 1 1 AID 5 | . . . . . . . . . . . . 1 . 2 . 1 . . . 1 . . . . . . . . EXPLORE 8 | . . . . . . . . . . . . 4 . 4 . . . . . . . . . . . . . . RETURN 2 | . . . . . . . . . . . . 2 . . . . . . . . . . . . . . . . Ally Attacks 1454 | . . . 12 7 . . . 18 11 . . 22 26 70 88 57 29 18 48 253 75 183 224 52 27 101 61 72 Total Damage 42734 | . . . 135 82 . . . 173 142 . . 971 354 1823 1429 707 978 458 516 6328 3017 6509 7380 1436 936 3577 1993 3790 Kills 276 | . . . 3 2 . . . . . . . 8 2 15 8 7 8 4 8 44 5 51 53 7 3 19 8 21 Allies Corrupted 5 | . . . . . . . . . . . . . . 1 . . . . . 1 . 1 1 . . . . 1 Allies Melted 2 | . . . . . . . . . . . . . . 2 . . . . . . . . . . . . . . Intel | -11 -10 -10 -9 -9 -9 -8 -8 -7 -7 -7 -7 -6 -6 -6 -6 -5 -5 -5 -5 -4 -4 -4 -4 -4 -4 -4 -4 -3 ------- Run | Scr Mat Min Mat Sto Gar Mat Gar Fac Gar Fac Gar Fac Gar Fac Gar Fac Gar Fac Gar Fac Was Fac Ext Cet Arc Hub Gar Res Robot Analysis Total 4 | . 3 . 1 . . . . . . . . . . . . . . . . . . . . . . . . . Derelict Logs Recovered 2 | . . 2 . . . . . . . . . . . . . . . . . . . . . . . . . . Drone Launches 7 | . . . . . . . . . . . . 4 . 3 . . . . . . . . . . . . . . Drone Recoveries 4 | . . . . . . . . . . . . 3 . 1 . . . . . . . . . . . . . . Exploration | -11 -10 -10 -9 -9 -9 -8 -8 -7 -7 -7 -7 -6 -6 -6 -6 -5 -5 -5 -5 -4 -4 -4 -4 -4 -4 -4 -4 -3 ------------- Run | Scr Mat Min Mat Sto Gar Mat Gar Fac Gar Fac Gar Fac Gar Fac Gar Fac Gar Fac Gar Fac Was Fac Ext Cet Arc Hub Gar Res Turns Passed 27647 | 61 1242 390 326 858 888 1315 973 660 664 343 1584 1483 1220 1824 975 1662 1427 359 1093 1339 687 1432 1452 351 96 445 1548 950 Spaces Moved 15326 | 48 769 273 210 450 412 557 484 426 520 1040 995 620 544 921 375 734 769 199 605 600 384 854 793 128 50 260 872 434 Core 20 | 3 . . . . . . . . 3 . . . . . . . . . . . . . . . . . . 14 Treads 7696 | . 73 1 24 214 412 71 14 25 . . . . . 162 196 599 769 199 605 576 384 854 793 128 50 260 872 415 Legs 2598 | . 8 . . . . . . . 76 . 728 620 544 621 . . . . . . . . . . . . . 1 Wheels 3381 | 45 688 272 186 236 . 486 470 401 117 . . . . 138 179 135 . . . 24 . . . . . . . 4 Hover . | . . . . . . . . . . . . . . . . . . . . . . . . . . . . . Flight 1631 | . . . . . . . . . 324 1040 267 . . . . . . . . . . . . . . . . . Fastest Speed 26 | 50 95 115 100 100 160 120 155 105 26 26 27 120 120 120 160 160 160 160 160 160 160 152 152 152 152 152 152 50 Average Speed 143 | 89 122 126 129 140 197 167 159 125 76 26 117 176 189 150 191 171 160 160 160 163 160 152 152 152 152 152 153 157 Slowest Speed 470 | 100 240 160 240 240 240 240 240 240 470 27 190 190 190 190 225 225 160 160 240 240 160 160 152 152 152 152 160 240 Overloaded Moves . | . . . . . . . . . . . . . . . . . . . . . . . . . . . . . Propulsion Burnouts . | . . . . . . . . . . . . . . . . . . . . . . . . . . . . . Robots Hopped 7 | . . . . . . . . . . 7 . . . . . . . . . . . . . . . . . . Cave-ins Triggered 1 | . 1 . . . . . . . . . . . . . . . . . . . . . . . . . . . Exploration Rate (%) 46 | 4 90 49 19 41 65 43 56 11 72 26 63 16 65 33 53 25 56 10 58 25 96 26 85 55 84 38 82 12 Regions Visited 28 Branch Regions 6 Pre-discovered Areas 5 | . 2 1 . 2 . . . . . . . . . . . . . . . . . . . . . . . . Known Exits Taken 13 | . 1 . 1 1 . 1 . 1 . 1 . 1 . 1 . 1 . 1 . . . 1 1 . . 1 . . Unknown Exits Taken 4 | 1 . 1 . . . . . . . . . . . . . . . . . . . . . 1 1 . . . Scrap Searched . | . . . . . . . . . . . . . . . . . . . . . . . . . . . . . Spaces Dug 161 | . 5 . . 2 . 9 . 12 . 14 2 6 . 21 . 30 . . . 27 . 2 1 . . . . 30 Terrain Destroyed 380 | . 5 . 1 2 . 68 . 12 20 14 2 6 . 21 . 31 1 20 . 35 . 3 9 1 1 1 46 81 Melee 114 | . . . . 2 . 7 . 12 . 14 2 3 . 19 . 25 . . . 25 . 2 1 . . . . 2 Projectile 64 | . 5 . 1 . . 2 . . 1 . . 3 . 2 . 6 1 . . 10 . 1 8 1 1 1 2 19 AOE 202 | . . . . . . 59 . . 19 . . . . . . . . 20 . . . . . . . . 44 60 Terrain Rammed . | . . . . . . . . . . . . . . . . . . . . . . . . . . . . . Walls Destroyed . | . . . . . . . . . . . . . . . . . . . . . . . . . . . . . Machines Disabled . | . . . . . . . . . . . . . . . . . . . . . . . . . . . . . Actions | -11 -10 -10 -9 -9 -9 -8 -8 -7 -7 -7 -7 -6 -6 -6 -6 -5 -5 -5 -5 -4 -4 -4 -4 -4 -4 -4 -4 -3 --------- Run | Scr Mat Min Mat Sto Gar Mat Gar Fac Gar Fac Gar Fac Gar Fac Gar Fac Gar Fac Gar Fac Was Fac Ext Cet Arc Hub Gar Res Total 19234 | 61 971 300 252 583 448 782 614 507 697 1075 1332 878 674 1255 558 1005 914 227 703 809 441 966 951 275 62 298 1015 581 Wait 1400 | 1 113 12 9 49 6 79 35 16 29 2 226 91 19 137 21 101 51 12 33 20 23 45 58 120 8 11 52 21 Move 15295 | 47 768 272 209 450 411 557 483 426 519 1027 994 620 543 921 374 734 768 199 604 600 383 853 792 127 49 260 871 434 Hop 6 | . . . . . . . . . . 6 . . . . . . . . . . . . . . . . . . Pick Up 244 | 5 10 2 7 6 4 11 8 6 7 4 14 13 11 22 19 14 16 . 8 13 5 11 2 4 . 2 14 6 Fast Attach 96 | 6 2 . 3 6 . 4 3 5 11 3 7 5 3 7 3 4 3 . 3 3 1 4 1 5 . 1 1 2 Attach 122 | . 7 . 2 4 2 11 2 5 15 . 4 10 6 10 3 3 9 . . 4 . 2 1 2 . 2 2 16 Detach 47 | . 3 . 3 2 1 1 . 1 4 . 4 3 1 3 2 3 6 . 1 2 . 2 1 2 . . 1 1 Swap 389 | 2 18 5 4 12 1 24 10 13 10 6 6 24 9 36 17 35 13 5 10 36 1 15 21 2 1 9 16 28 Drop 203 | . 6 1 7 8 . 7 7 6 7 10 6 15 4 23 12 14 9 . 6 10 8 11 3 7 . 3 7 6 Fire 919 | . 43 8 8 42 19 80 34 2 27 . 53 57 35 32 60 55 36 8 32 80 9 12 63 6 4 8 43 63 Melee 322 | . . . . 2 . 8 1 22 27 17 8 37 8 57 15 41 2 . 3 37 11 5 7 . . 2 8 4 Ram . | . . . . . . . . . . . . . . . . . . . . . . . . . . . . . Kick 3 | . . . . . . . . . . . 1 2 . . . . . . . . . . . . . . . . Crush 23 | . 1 . . 2 . . . 3 . . . . . 1 . 1 . 3 . 4 . 6 2 . . . . . Escape Stasis 154 | . . . . . 4 . 30 . 41 . 9 . 35 . 32 . . . 3 . . . . . . . . . Rewire 11 | . . . . . . . 1 2 . . . 1 . 6 . . 1 . . . . . . . . . . . Trap . | . . . . . . . . . . . . . . . . . . . . . . . . . . . . . Miscellaneous . | . . . . . . . . . . . . . . . . . . . . . . . . . . . . . Route ------- -11/Scrapyard -10/Materials (discovered 4 exits: *Mat x3 / *Min) -10/Mines (discovered 2 exits: *Mat / [*Exi]) -9/Materials -9/Storage -9/Garrison (discovered 3 exits: *Mat x3) -8/Materials -8/Garrison (discovered 2 exits: *Fac x2) -7/Factory (discovered 3 exits: *Fac / [*Low] / Gar) -7/Garrison (discovered 3 exits: *Fac x3) -7/Factory -7/Garrison (discovered 2 exits: *Fac x2) -6/Factory (discovered 2 exits: *Fac / Gar) -6/Garrison (discovered 2 exits: *Fac x2) -6/Factory (discovered 2 exits: *Fac / Gar) -6/Garrison (discovered 2 exits: *Fac x2) -5/Factory (discovered 2 exits: *Fac / Gar) -5/Garrison (discovered 2 exits: *Fac x2) -5/Factory -5/Garrison (discovered 2 exits: *Fac x2) -4/Factory -4/Waste -4/Factory (discovered 5 exits: Upp x2 / *Ext x2 / Arm) -4/Extension (discovered 2 exits: *Res / *Cet) -4/Cetus -4/Archives (discovered 3 exits: *Res / *Hub x2) -4/Hub_04(d) (discovered 2 exits: *Res / Gar) -4/Garrison (discovered 3 exits: *Res x3) -3/Research History --------- Turn | Location | Event 15 | -11/Scrapyard | Discovered new exit (range 15) 62 | -11/Scrapyard | Entered Materials 287 | -10/Materials | Discovered new exit (range 15) 317 | -10/Materials | Build established: Mutant 595 | -10/Materials | Identified exit to Mines 617 | -10/Materials | Discovered new exit (range 16) 709 | -10/Materials | Discovered new exit (range 15) 989 | -10/Materials | Crushed by falling debris 1089 | -10/Materials | Discovered new exit (range 15) 1195 | -10/Materials | Core integrity fell below 50% 1304 | -10/Materials | Entered Mines 1488 | -10/Mines | Deemed a non-threat by the Exiles lab entrance 1489 | -10/Mines | Discovered new exit (range 5) 1540 | -10/Mines | Assisted by bots powering up and referring to "LRC-V3" 1593 | -10/Mines | Discovered new exit (range 7) 1694 | -10/Mines | Entered Materials 1694 | -9/Materials | Accompanied by 3 allies 1694 | -9/Materials | Evolved 2 slots: Propulsion x1, Utility x1 1695 | -9/Materials | Identified exit to Storage 2020 | -9/Materials | Entered Storage 2020 | -9/Storage | Accompanied by 1 ally 2353 | -9/Storage | Garrison activated, responded to threat 2718 | -9/Storage | Garrison activated, responded to threat 2878 | -9/Storage | Identified exit to Garrison 2878 | -9/Storage | Entered Garrison 2992 | -9/Garrison | Triggered checkpoint 3085 | -9/Garrison | Discovered new exit (range 19) 3220 | -9/Garrison | Triggered checkpoint 3321 | -9/Garrison | Discovered new exit (range 14) 3496 | -9/Garrison | Triggered checkpoint 3557 | -9/Garrison | Discovered new exit (range 12) 3582 | -9/Garrison | Installed Relay Interface Framework 3632 | -9/Garrison | Triggered checkpoint 3665 | -9/Garrison | Garrison Relay disabled 3766 | -9/Garrison | Entered Materials 3766 | -8/Materials | Evolved 2 slots: Utility x2 3791 | -8/Materials | Build established: Scavenger-Mutant 4049 | -8/Materials | Lost 3 parts (2u1w) 4566 | -8/Materials | First assault squad dispatched 4699 | -8/Materials | Lost 5 parts (1n4u) 5043 | -8/Materials | Destroyed 8 combat bots 5081 | -8/Materials | Identified exit to Garrison 5081 | -8/Materials | Entered Garrison 5089 | -8/Garrison | Expanded RIF knowledge: Command Fork 5178 | -8/Garrison | Triggered checkpoint 5199 | -8/Garrison | Triggered checkpoint 5444 | -8/Garrison | Triggered checkpoint 5461 | -8/Garrison | Discovered new exit (range 13) 5531 | -8/Garrison | Garrison Relay disabled 5683 | -8/Garrison | Core integrity fell below 50% 5761 | -8/Garrison | Discovered new exit (range 19) 5824 | -8/Garrison | Triggered checkpoint 5829 | -8/Garrison | Build established: Bothacker-Mutant 5880 | -8/Garrison | Garrison Relay disabled 6054 | -8/Garrison | Entered Factory 6054 | -7/Factory | Accompanied by 1 ally 6054 | -7/Factory | Evolved 2 slots: Propulsion x1, Utility x1 6114 | -7/Factory | Discovered new exit (range 5) 6433 | -7/Factory | Discovered new exit (range 18) 6670 | -7/Factory | Garrison activated, responded to threat 6714 | -7/Factory | Identified exit to Garrison 6714 | -7/Factory | Entered Garrison 6743 | -7/Garrison | Lost 3 parts (1p2n) 6809 | -7/Garrison | Destroyed 7 combat bots 6812 | -7/Garrison | Lost 7 parts (2n1u4w) 6994 | -7/Garrison | Lost 5 parts (2p2n1w) 7018 | -7/Garrison | Core integrity fell below 50% 7080 | -7/Garrison | Triggered checkpoint 7189 | -7/Garrison | Discovered new exit (range 13) 7294 | -7/Garrison | Discovered new exit (range 8) 7323 | -7/Garrison | Discovered new exit (range 12) 7327 | -7/Garrison | Expanded RIF knowledge: Alert ID Control 7378 | -7/Garrison | Entered Factory 7471 | -7/Factory | System Shield fried by hacking feedback 7721 | -7/Factory | Identified exit to Garrison 7721 | -7/Factory | Entered Garrison 7972 | -7/Garrison | Triggered checkpoint 8294 | -7/Garrison | Build established: Mutant 8337 | -7/Garrison | Discovered new exit (range 17) 8483 | -7/Garrison | Discovered new exit (range 8) 8502 | -7/Garrison | Expanded RIF knowledge: Autooverride 8540 | -7/Garrison | Triggered checkpoint 8546 | -7/Garrison | Core integrity fell below 20% 8561 | -7/Garrison | Garrison Relay disabled 8604 | -7/Garrison | Build established: Scavenger-Mutant 8654 | -7/Garrison | Triggered checkpoint 8712 | -7/Garrison | Garrison Relay disabled 8794 | -7/Garrison | Triggered checkpoint 8843 | -7/Garrison | Garrison Relay disabled 9305 | -7/Garrison | Entered Factory 9305 | -6/Factory | Evolved 2 slots: Utility x2 9491 | -6/Factory | Discovered new exit (range 23) 9518 | -6/Factory | Garrison activated, responded to threat 10072 | -6/Factory | Garrison activated, responded to threat 10148 | -6/Factory | Fabricated H-66 Slayer? 10157 | -6/Factory | Build established: Botlord-Mutant 10158 | -6/Factory | P-60 Hacker assimilated allied Guardian 5a 10788 | -6/Factory | Identified exit to Garrison 10788 | -6/Factory | Entered Garrison 10970 | -6/Garrison | Triggered checkpoint 10973 | -6/Garrison | Triggered checkpoint 11116 | -6/Garrison | Discovered new exit (range 19) 11212 | -6/Garrison | Triggered checkpoint 11497 | -6/Garrison | Discovered new exit (range 13) 11529 | -6/Garrison | Expanded RIF knowledge: Autooverride 11584 | -6/Garrison | Triggered checkpoint 11646 | -6/Garrison | Lost 5 parts (1p1n3w) 11725 | -6/Garrison | Garrison Relay disabled 11943 | -6/Garrison | Garrison Relay disabled 12008 | -6/Garrison | Entered Factory 13034 | -6/Factory | Discovered new exit (range 66) 13307 | -6/Factory | Garrison activated, responded to threat 13440 | -6/Factory | Repaired Lyr. Medium Armor Plating 13464 | -6/Factory | Identified exit to Garrison 13474 | -6/Factory | Core integrity fell below 50% 13634 | -6/Factory | Fabricated Huge Storage Unit (x1) 13832 | -6/Factory | Identified exit to Garrison 13832 | -6/Factory | Entered Garrison 13840 | -6/Garrison | Expanded RIF knowledge: Hotswap 14022 | -6/Garrison | Garrison Relay disabled 14102 | -6/Garrison | Spotted B-75 Beast 14132 | -6/Garrison | Allies destroyed B-75 Beast 14199 | -6/Garrison | Triggered checkpoint 14234 | -6/Garrison | Triggered checkpoint 14349 | -6/Garrison | Discovered new exit (range 8) 14414 | -6/Garrison | Triggered checkpoint 14459 | -6/Garrison | Garrison Relay disabled 14674 | -6/Garrison | Discovered new exit (range 8) 14694 | -6/Garrison | Triggered checkpoint 14724 | -6/Garrison | Garrison Relay disabled 14807 | -6/Garrison | Entered Factory 14807 | -5/Factory | Accompanied by 3 allies 14807 | -5/Factory | Evolved 2 slots: Utility x2 15078 | -5/Factory | Discovered new exit (range 22) 15538 | -5/Factory | Repaired Imp. Medium Treads 16318 | -5/Factory | Spotted B-75 Beast 16469 | -5/Factory | Identified exit to Garrison 16469 | -5/Factory | Entered Garrison 16558 | -5/Garrison | Triggered checkpoint 16640 | -5/Garrison | Triggered checkpoint 16694 | -5/Garrison | Garrison Relay disabled 16828 | -5/Garrison | Triggered checkpoint 16890 | -5/Garrison | Discovered new exit (range 8) 16930 | -5/Garrison | Expanded RIF knowledge: Zone Cloak 17050 | -5/Garrison | Discovered new exit (range 19) 17116 | -5/Garrison | Triggered checkpoint 17160 | -5/Garrison | Garrison Relay disabled 17412 | -5/Garrison | Triggered checkpoint 17419 | -5/Garrison | Garrison Relay disabled 17484 | -5/Garrison | Lost 3 parts (1p2u) 17896 | -5/Garrison | Entered Factory 17896 | -5/Factory | Accompanied by 3 allies 18255 | -5/Factory | Identified exit to Garrison 18255 | -5/Factory | Entered Garrison 18255 | -5/Garrison | Accompanied by 1 ally 18263 | -5/Garrison | Expanded RIF knowledge: Autoassimilate 18292 | -5/Garrison | Triggered checkpoint 18378 | -5/Garrison | Triggered checkpoint 18384 | -5/Garrison | Garrison Relay disabled 18588 | -5/Garrison | Triggered checkpoint 18589 | -5/Garrison | Triggered checkpoint 18593 | -5/Garrison | Triggered checkpoint 18726 | -5/Garrison | Discovered new exit (range 12) 18776 | -5/Garrison | Triggered checkpoint 18811 | -5/Garrison | Garrison Relay disabled 18953 | -5/Garrison | Discovered new exit (range 12) 19000 | -5/Garrison | Triggered checkpoint 19034 | -5/Garrison | Garrison Relay disabled 19348 | -5/Garrison | Entered Factory 19348 | -4/Factory | Accompanied by 9 allies 19348 | -4/Factory | Evolved 2 slots: Utility x2 19741 | -4/Factory | Garrison activated, responded to threat 20194 | -4/Factory | Spotted B-86 Titan 20198 | -4/Factory | Assimilated Titan 7a with formatsys_high 20665 | -4/Factory | Discovered new exit (range 23) 20687 | -4/Factory | Sucked down chute 20687 | -4/Factory | Entered Waste 20693 | -4/Waste | Spotted C-40 Crusher 20700 | -4/Waste | 1 allies followed down the chute 20711 | -4/Waste | Spotted C-40 Crusher 20725 | -4/Waste | Spotted C-40 Crusher 20735 | -4/Waste | Allies destroyed C-40 Crusher 20744 | -4/Waste | Spotted C-40 Crusher 20773 | -4/Waste | Spotted C-40 Crusher 20789 | -4/Waste | Allies destroyed C-40 Crusher 20831 | -4/Waste | Destroyed C-40 Crusher 20838 | -4/Waste | Spotted C-40 Crusher 20847 | -4/Waste | Found Damper Plating 21006 | -4/Waste | Discovered new exit (range 12) 21085 | -4/Waste | Destroyed C-40 Crusher 21093 | -4/Waste | Found Damper Plating 21138 | -4/Waste | Warlord forces began an assault 21270 | -4/Waste | Allies destroyed C-40 Crusher 21304 | -4/Waste | Allies destroyed C-40 Crusher 21374 | -4/Waste | Entered Factory 21374 | -4/Factory | Accompanied by 18 allies 21522 | -4/Factory | Repaired Broken Biometal Heavy Treads 22124 | -4/Factory | First assault squad dispatched 22143 | -4/Factory | Repaired Lyr. Medium Armor Plating? 22568 | -4/Factory | Identified exit to Upper Caves 22568 | -4/Factory | Identified exit to Extension 22568 | -4/Factory | Identified exit to Armory 22806 | -4/Factory | Entered Extension 22806 | -4/Extension | Accompanied by 6 allies 22875 | -4/Extension | Rescued a captive Derelict 23114 | -4/Extension | Rescued A7 23485 | -4/Extension | Warlord forces began an assault 23538 | -4/Extension | Spotted B-86 Titan 23547 | -4/Extension | Spotted B-86 Titan 23550 | -4/Extension | Allies destroyed B-86 Titan 23688 | -4/Extension | Rescued a captive Derelict 23696 | -4/Extension | Rescued a captive Derelict 23758 | -4/Extension | Rescued a captive Derelict 23758 | -4/Extension | Rescued a captive Derelict 23806 | -4/Extension | First assault squad dispatched 23819 | -4/Extension | Rescued a captive Derelict 24106 | -4/Extension | Energy Cycler disabled 24224 | -4/Extension | Disrupted transfer network 24224 | -4/Extension | Discovered new exit (range 13) 24237 | -4/Extension | Discovered new exit (range 6) 24252 | -4/Extension | Identified exit to Cetus 24258 | -4/Extension | Entered Cetus 24258 | -4/Cetus | Accompanied by 6 allies (A7) 24263 | -4/Cetus | Acquired a Cetus Manufacturing Module code from A7 24271 | -4/Cetus | Spotted Cetus Guard 24272 | -4/Cetus | Spotted Cetus Guard 24276 | -4/Cetus | Spotted Cetus Guard 24285 | -4/Cetus | Spotted Cetus Guard 24288 | -4/Cetus | Allies destroyed Cetus Guard 24305 | -4/Cetus | Destroyed Cetus Guard 24305 | -4/Cetus | Allies destroyed Cetus Guard 24307 | -4/Cetus | Allies destroyed Cetus Guard 24402 | -4/Cetus | Started Cetus Manufacturing Module 24410 | -4/Cetus | Discovered new exit (range 22) 24427 | -4/Cetus | Manufactured an Enhanced Grunt 24452 | -4/Cetus | Manufactured an Enhanced Grunt 24477 | -4/Cetus | Manufactured an Enhanced Grunt 24502 | -4/Cetus | Manufactured an Enhanced Grunt 24527 | -4/Cetus | Manufactured an Enhanced Grunt 24609 | -4/Cetus | Entered Archives 24609 | -4/Archives | Accompanied by 10 allies (A7) 24653 | -4/Archives | Discovered new exit (range 21) 24661 | -4/Archives | Discovered new exit (range 22) 24667 | -4/Archives | Discovered new exit (range 22) 24705 | -4/Archives | Entered Hub_04(d) 24705 | -4/Hub_04(d) | Accompanied by 8 allies 24879 | -4/Hub_04(d) | Garrison activated, responded to threat 24972 | -4/Hub_04(d) | Discovered new exit (range 8) 25148 | -4/Hub_04(d) | Identified exit to Garrison 25150 | -4/Hub_04(d) | Entered Garrison 25150 | -4/Garrison | Accompanied by 3 allies 25158 | -4/Garrison | Expanded RIF knowledge: Robot Detection 25242 | -4/Garrison | Triggered checkpoint 25263 | -4/Garrison | Garrison Relay disabled 25396 | -4/Garrison | Spotted B-86 Titan 25430 | -4/Garrison | Triggered checkpoint 25434 | -4/Garrison | Triggered checkpoint 25453 | -4/Garrison | Triggered checkpoint 25456 | -4/Garrison | Allies destroyed B-86 Titan 25526 | -4/Garrison | Triggered checkpoint 25571 | -4/Garrison | Discovered new exit (range 22) 25592 | -4/Garrison | Garrison Relay disabled 25866 | -4/Garrison | Discovered new exit (range 9) 25920 | -4/Garrison | Triggered checkpoint 25992 | -4/Garrison | Garrison Relay disabled 26130 | -4/Garrison | Discovered new exit (range 13) 26188 | -4/Garrison | Triggered checkpoint 26260 | -4/Garrison | Garrison Relay disabled 26698 | -4/Garrison | Entered Research 26698 | -3/Research | Accompanied by 5 allies 26698 | -3/Research | Evolved 2 slots: Utility x2 26948 | -3/Research | First assault squad dispatched 27609 | -3/Research | Garrison activated, responded to threat 27631 | -3/Research | Core integrity fell below 50% 27640 | -3/Research | Core integrity fell below 20% 27647 | -3/Research | Spotted B-86 Titan 27648 | -3/Research | Destroyed by B-86 Titan with Matter Neutralizer Last Messages --------------- 27632_ U-05 Engineer builds a Wall. 27633_ Critical hit (Burn: +50). 27633_ Centrium Wheel destroyed. 27635_ Slug penetrates Wall. 27636_ U-05 Engineer lays Concrete. 27637_ U-05 Engineer builds a Wall. 27637_ L-61 Swordsman destroyed. 27639_ Penetrated by Slug. 27639_ Relay Coupler [Swarmer] destroyed. 27640_ H-77 Assassin destroyed. 27640_ Dropped Huge Storage Unit. 27641_ Acquired 22 matter. 27641_ Dropped Energy Well. 27641_ Relay Coupler [NC] destroyed. 27641_ U-05 Engineer builds a Wall. 27643_ Relay Coupler [Behemoth] destroyed. 27644_ G-67 Veteran heat damages Field Laser. 27645_ U-05 Engineer lays Concrete. 27646_ U-05 Engineer builds a Wall. 27648_ G-67 Veteran heat damages Flexi-carbon Leg. Map ----- +----------------------------------------------------+ | # =!= %#???#??? ?#?????# #????????????? | | ??##"######## #?????# #????????????? | | ??#% =! #?#???# #????????????? | | ## #[* ##########?????# #????????????? | | ? ## #???????????##?# #????????????? | | ### #???????????? ## ?????????????? | | ???# #????????????# # ???????????????? | | ???# ############### #????????????????? | | ???# # # #????????????????? | | ??## % # # ]! ##???????????????? | | ???# # != # """""" !=%] ########+#####??? | | ???# # = # """"""!gg[*= ### ???????? | | ?#?# # # """""""=!gg % % ???????? | | #??# #! # %/| ### ???????? | | ???# % # ! = i # ????????? | | ??# # ! ##? #########??? | | ??## # ####??A #??????????? | | ?## ############+#;;;;;###?#? #??????????? | | ??## #??????? + ### #??????????? | | ??# % # ?? ? ??# [ #??????????? | | ?### !###??? ????# ^ %g #??????????? | | ?## ##??? ????+%] #??????????? | | ## %% ##?????? ?# !! ^""G"" #??????????? | | ?# % ##????????# | " " ###????????? | | ?# * # #??????? # " " B?#????????? | | ?# # # ???? ? #] @ BB#????????? | | ## %# #??? ????# ###????????? | | ?# # ### ######o A #??????????? | | ?# ! ####????# #??????????? | | ## # ## ########### ####+##########??????????? | | ?##### [#[ =% ! # # #???????????? | | ??# =%+%%%!* # # #??#????????? | | #?# ## %#=%[" # # #???#???????? | | #?# ######=%"""" # # #??#????????? | | ??# # # """ # # #???????????? | | ?## # # " " + # """ #???#???????? | | ??# # ]# =% ! # #? """"#?#??#??????? | | ?## " # | = ! # #? """"#???????????? | | ??##" = "###"#+"### # """#???????????? | | ??? " %[ "#?#[![=!"%" #?? #???#???????? | | #??#" =%!"#?#=*=%%= # ?? #??????#????? | | ??? "=%! ####%!!!*! #? ? ! #??????#????? | | ???#" =* "###*=%%[!! ##############???????????? | | ???######## #%%/!##################????#????????#? | | ?#?##########!=%%######## """"" #??#??#????????? | | ?#?# #%!%%#* # """"" #???#?????#????# | | ???# #/%!!#= # """"" #???????#??????? | | ???# #=!!=#! # ##?????????#???? | | #??# #*[%*#% # #????##???##?#?? | | ???# +[%=%+ # #??????#???????? | +----------------------------------------------------+ Best States ------------- Heat Dissipation 100 Coolant Potential 100 Energy Generation 25 Energy Capacity 520 Matter Stores 407 Matter Capacity 500 Sight Range 23 Robot Scan Range 14 Terrain Scan Range 20 Terrain Scan Density 10 Jamming Range 12 Armor Coverage 1200 Resistance: KI 30 Propulsion Shielding 66 Point Defense Rating 160 Evasion (%) 64 Targeting Accuracy 12 Recoil Reduction 4 Matter Filtering 30 Kinecelleration 40 Offensive Hacking 10 Defensive Hacking 12 Relay Coupler Types 9 Relay Coupler Value 173 Item Schematics ----------------- Hcp. Storage Unit | -10/Materials | Hacked Huge Storage Unit | -10/Materials | Hacked Imp. Remote Datajack | -6/Factory | Hacked Imp. Datajack | -6/Factory | Scanalyzed Imp. System Shield | -6/Factory | Scanalyzed Antimissile System | -4/Factory | Hacked Robot Schematics ------------------ None Fabricated ------------ H-66 Slayer | x2 | -6/Factory | Preloaded Huge Storage Unit | x1 | -6/Factory Alien Tech Used ----------------- None Achievements -------------- None Challenges ------------ None Game ------ Seed TrapStasisShredder Manual? 0 Play Time 05:43:20 Cumulative 298.2 hours Start 2022.06.05 @ 19:45:44 End 2022.06.06 @ 01:44:27 Sessions 3 Manual Loads 0 Difficulty Rogue Special Mode None Game No. 84 Rogue 84 Adventurer 0 Explorer 0 Win Type - Total 14 Types 12/0/2/0/0/0/0/0/0 Lore% 87 Gallery% 88 Achievement% 73 Wizard Run 0 Options --------- ASCII 0 Keyboard 0 Movement Numpad Keybinds 0 Fullscreen 1 Font 14/SmallcapsGlow Map View 84x54 Tactical HUD 1 Map Filters NONE Filters NONE Steam 1 RUN: 3cfa167c-84ea-4cee-baeb-f429dd8209ea